bitfinex/quotes_SOLUSD_20251119
["timestamp","ask_amount","ask_price","bid_price","bid_amount"]
[1763552525168,2.12038381,139.06,139.04,1.7]
[1763552525583,2.12038381,139.06,139.05,0.68]
[1763552527796,2.12038381,139.06,139.04,2.38]
[1763552527966,2.12038381,139.06,139.05,0.68]
[1763552528307,2.12038381,139.06,139.04,1.7]
[1763552528464,2.12038381,139.05,139.04,2.38]
[1763552530372,18.12096,139.09,139.04,2.38]
[1763552530571,18.12096,139.09,139.04,1.7]
[1763552530572,2.12038381,139.05,139.04,1.7]
[1763552530767,3.31888664,139.05,139.04,1.7]
[1763552531279,3.31888664,139.05,139.04,2.38]
[1763552532584,3.31888664,139.06,139.04,2.38]
[1763552532783,3.31888664,139.06,139.05,0.68]
[1763552533582,3.31888664,139.12,139.05,0.68]
[1763552533583,18.12096,139.1,139.05,0.68]
[1763552533895,3.31888664,139.07,139.05,0.68]
[1763552534575,3.31888664,139.06,139.05,0.68]
[1763552539197,3.31888664,139.07,139.05,0.68]
[1763552540573,3.31888664,139.08,139.05,0.68]
[1763552540778,3.31888664,139.09,139.05,0.68]
[1763552540971,3.31888664,139.09,139.05,3.56236353]
[1763552541391,3.31888664,139.1,139.06,10.46882769]
[1763552541789,3.31888664,139.1,139.07,0.68]
[1763552541988,3.31888664,139.12,139.08,1.7]
[1763552542474,3.31888664,139.12,139.09,0.68]
[1763552545206,3.31888664,139.13,139.09,0.68]
[1763552546806,9.78882769,139.19,139.1,3.31888664]
[1763552547118,3.31888664,139.14,139.1,3.31888664]
[1763552547302,3.31888664,139.14,139.11,0.69]
[1763552548117,3.31888664,139.15,139.11,0.69]
[1763552549705,3.31888664,139.15,139.12,1.7]
[1763552550121,3.31888664,139.16,139.13,0.69]
[1763552550809,3.31888664,139.15,139.13,0.69]
[1763552553420,3.31888664,139.14,139.12,2.39]
[1763552554033,3.31888664,139.13,139.12,1.7]
[1763552554404,3.31888664,139.13,139.08,0.69]
[1763552554609,3.31888664,139.1,139.08,0.69]
[1763552555220,18.12096,139.14,139.08,0.69]
[1763552555421,3.31888664,139.11,139.08,0.69]
[1763552556036,18.12096,139.14,139.08,0.69]
[1763552556037,3.31888664,139.1,139.08,0.69]
[1763552561013,3.31888664,139.11,139.08,0.69]
[1763552561835,3.31888664,139.1,139.08,0.69]
[1763552562259,3.31888664,139.09,139.05,9.78882769]
[1763552562412,3.31888664,139.07,139.04,0.69]
[1763552562749,3.31888664,139.07,139.05,0.69]
[1763552564236,18.12096,139.12,139.05,0.69]
[1763552564438,3.31888664,139.08,139.05,0.69]
[1763552568550,3.31888664,139.08,139.05,18.81096]
[1763552568846,3.31888664,139.07,139.05,0.69]
[1763552571251,3.31888664,139.08,139.05,0.69]
[1763552572026,3.31888664,139.1,139.05,4.00888664]
[1763552572442,3.31888664,139.1,139.06,0.66]
[1763552572634,3.31888664,139.1,139.07,1.7]
[1763552573152,3.31888664,139.1,139.07,2.36]
[1763552574256,18.12096,139.12,139.07,2.36]
[1763552574556,3.31888664,139.09,139.08,0.66]
[1763552576356,3.31888664,139.09,139.07,2.36]
[1763552576540,3.31888664,139.08,139.07,2.36]
[1763552577756,21.43984664,139.12,139.07,2.36]
[1763552577757,3.31888664,139.09,139.07,2.36]
[1763552578060,3.31888664,139.09,139.08,0.66]
[1763552578776,18.12096,139.12,139.08,0.66]
[1763552578938,1.7,139.16,139.08,0.66]
[1763552579136,3.31888664,139.11,139.08,0.66]
[1763552581968,18.12096,139.15,139.08,0.66]
[1763552581969,3.31888664,139.12,139.08,0.66]
[1763552582738,3.31888664,139.11,139.08,0.66]
[1763552582944,18.12096,139.15,139.08,0.66]
[1763552582945,3.31888664,139.12,139.08,0.66]
[1763552583165,3.31888664,139.11,139.08,0.66]
[1763552585065,18.12096,139.14,139.08,0.66]
[1763552585272,3.31888664,139.14,139.1,3.31888664]
[1763552585572,3.31888664,139.14,139.11,1.7]
[1763552585767,3.31888664,139.15,139.11,2.36]
[1763552585965,3.31888664,139.15,139.12,0.66]
[1763552590347,32.92867433,139.2,139.12,0.66]
[1763552590565,3.31888664,139.15,139.12,0.66]
[1763552592770,2.12122351,139.15,139.12,0.66]
[1763552593573,2.12122351,139.16,139.12,0.66]
[1763552593772,2.12122351,139.17,139.12,2.78122351]
[1763552594074,2.12122351,139.17,139.12,20.90218351]
[1763552594276,2.12122351,139.17,139.13,2.78122351]
[1763552594649,2.12122351,139.17,139.14,0.66]
[1763552598479,2.12122351,139.16,139.14,2.36]
[1763552598984,26.60585404,139.2,139.14,1.7]
[1763552598985,2.12122351,139.15,139.14,1.7]
[1763552599276,2.12122351,139.15,139.12,0.66]
[1763552599454,2.12122351,139.14,139.12,0.66]
[1763552599873,27.90978769,139.19,139.12,0.66]
[1763552600072,2.12122351,139.14,139.12,0.66]
[1763552607086,29.60978769,139.19,139.12,0.66]
[1763552607390,2.12122351,139.14,139.12,0.66]
[1763552608463,2.12122351,139.13,139.1,0.68]
[1763552608665,2.12122351,139.12,139.1,2.38]
[1763552609095,2.12122351,139.12,139.11,0.68]
[1763552609286,2.12122351,139.13,139.11,0.68]
[1763552609591,2.12122351,139.14,139.11,0.68]
[1763552610096,2.12122351,139.13,139.11,0.68]
[1763552611687,2.12122351,139.12,139.11,0.68]
[1763552613693,2.12122351,139.12,139.1,0.68]
[1763552613910,18.12096,139.16,139.09,0.68]
[1763552613911,2.12122351,139.11,139.09,0.68]
[1763552616500,2.12122351,139.1,139.09,0.68]
[1763552617814,2.12122351,139.1,139.08,1.7]
[1763552618110,2.12122351,139.09,139.08,2.38]
[1763552618313,2.12122351,139.09,139.08,1.7]
[1763552618892,2.12122351,139.09,139.08,2.38]
[1763552619092,2.12122351,139.09,139.03,9.88882769]
[1763552619292,2.12122351,139.08,139.06,0.68]
[1763552619501,2.12122351,139.08,139.04,1.7]
[1763552619502,2.12122351,139.07,139.04,2.38]
[1763552619811,2.12122351,139.06,139.04,1.7]
[1763552619987,2.12122351,139.06,139.05,0.68]
[1763552622198,2.12122351,139.06,139.04,2.38]
[1763552622418,2.12122351,139.05,139.04,2.38]
[1763552622602,2.12122351,139.06,139.05,0.68]
[1763552623115,2.12122351,139.08,139.05,0.68]
[1763552623306,2.12122351,139.07,139.03,0.1]
[1763552623512,2.12122351,139.07,139.03,0.78]
[1763552624597,18.12096,139.09,139.03,0.78]
[1763552624821,2.12122351,139.07,139.03,0.78]
[1763552628309,2.12122351,139.08,139.03,2.90122351]
[1763552628821,2.12122351,139.08,139.04,0.68]
[1763552629013,2.12122351,139.07,139.04,0.68]
[1763552630307,2.12122351,139.07,139.03,0.1]
[1763552630308,2.12122351,139.06,139.03,0.78]
[1763552631212,18.12096,139.07,139.03,0.78]
[1763552631423,20.24218351,139.07,139.03,0.78]
[1763552635639,18.12096,139.07,139.03,0.78]
[1763552635839,20.24218351,139.07,139.03,0.78]
[1763552636237,2.12122351,139.1,139.05,2.12122351]
[1763552636539,20.24218351,139.1,139.05,2.12122351]
[1763552636741,20.24218351,139.09,139.06,0.68]
[1763552636943,2.12122351,139.09,139.06,0.68]
[1763552638253,20.24218351,139.1,139.06,0.68]
[1763552640417,20.24218351,139.1,139.06,2.80122351]
[1763552640616,20.24218351,139.1,139.06,0.68]
[1763552640913,20.24218351,139.1,139.07,0.68]
[1763552644623,18.12096,139.1,139.07,0.68]
[1763552644829,20.24218351,139.1,139.07,0.68]
[1763552648528,2.12122351,139.09,139.07,0.68]
[1763552653448,16.27913653,139.13,139.04,20.24218351]
[1763552653449,2.12122351,139.08,139.04,18.80096]
[1763552653641,2.12122351,139.08,139.05,0.68]
[1763552653838,4.79030884,139.12,139.05,2.80122351]
[1763552654039,2.12122351,139.09,139.05,2.80122351]
[1763552654232,14.57913653,139.13,139.06,0.68]
[1763552654440,2.12122351,139.09,139.06,0.68]
[1763552654859,3.3174656,139.09,139.06,0.68]
[1763552655741,3.3174656,139.1,139.06,0.68]
[1763552657142,14.57913653,139.13,139.06,3.9974656]
[1763552657143,4.79030884,139.13,139.06,3.9974656]
[1763552657362,3.3174656,139.14,139.09,3.3174656]
[1763552657841,3.3174656,139.14,139.1,0.68]
[1763552658646,3.3174656,139.13,139.1,0.68]
[1763552659148,3.3174656,139.14,139.1,0.68]
[1763552659341,3.3174656,139.14,139.1,3.9974656]
[1763552659545,3.3174656,139.14,139.11,0.68]
[1763552661541,3.3174656,139.13,139.11,0.68]
[1763552663562,3.3174656,139.12,139.08,0.69]
[1763552663861,3.3174656,139.11,139.09,0.69]
[1763552667170,3.3174656,139.11,139.07,20.51096]
[1763552667369,3.3174656,139.1,139.07,0.69]
[1763552667950,3.3174656,139.09,139.07,0.69]
[1763552670581,3.3174656,139.1,139.07,0.69]
[1763552671154,3.3174656,139.09,139.07,0.69]
[1763552673490,9.78882769,139.12,139.07,0.69]
[1763552673491,3.3174656,139.1,139.07,0.69]
[1763552674865,3.3174656,139.09,139.07,0.69]
[1763552676772,3.3174656,139.1,139.07,0.69]
[1763552684699,3.3174656,139.09,139.07,0.69]
[1763552684872,3.3174656,139.1,139.07,0.69]
[1763552685072,3.3174656,139.09,139.07,0.69]
[1763552685381,3.3174656,139.08,139.06,2.39]
[1763552686595,3.3174656,139.07,139.06,1.7]
[1763552686783,3.3174656,139.07,139.04,0.69]
[1763552687091,3.3174656,139.06,139.04,0.69]
[1763552687796,6.49685547,139.1,139.04,0.69]
[1763552687998,3.3174656,139.07,139.04,0.69]
[1763552691513,19.82096,139.11,139.04,4.0074656]
[1763552691514,3.3174656,139.08,139.04,4.0074656]
[1763552691794,3.3174656,139.09,139.05,0.67]
[1763552696504,3.3174656,139.08,139.05,0.67]
[1763552697682,3.3174656,139.09,139.05,0.67]
[1763552697883,3.3174656,139.1,139.05,3.9874656]
[1763552698284,3.3174656,139.1,139.06,0.67]
[1763552699088,3.3174656,139.1,139.06,2.37]
[1763552699288,6.49603433,139.13,139.06,2.37]
[1763552699289,3.3174656,139.09,139.07,0.67]
[1763552700200,3.3174656,139.09,139.06,2.37]
[1763552700396,3.3174656,139.08,139.06,2.37]
[1763552702112,3.3174656,139.07,139.04,0.67]
[1763552702315,3.3174656,139.07,139.05,0.67]
[1763552703196,3.3174656,139.07,139.03,18.22096]
[1763552703197,3.3174656,139.06,139.03,0.1]
[1763552703391,3.3174656,139.04,139.03,0.1]
[1763552704196,3.3174656,139.04,139.03,0.77]
[1763552708918,3.3174656,139.07,139.03,0.77]
[1763552709098,3.3174656,139.06,139.03,0.77]
[1763552711591,3.3174656,139.07,139.03,0.77]
[1763552712192,3.3174656,139.06,139.03,0.77]
[1763552714718,3.3174656,139.07,139.03,0.77]
[1763552716814,2.12402073,139.07,139.03,0.77]
[1763552718220,2.12402073,139.05,139.03,0.77]
[1763552719308,2.12402073,139.06,139.03,0.77]
[1763552721220,2.12402073,139.07,139.03,0.77]
[1763552721804,2.12402073,139.08,139.03,21.01498073]
[1763552722202,2.12402073,139.08,139.04,0.68]
[1763552722418,2.12402073,139.06,139.03,0.1]
[1763552722614,14.58496754,139.1,139.03,0.1]
[1763552722615,2.12402073,139.05,139.03,0.1]
[1763552723408,2.12402073,139.05,139.03,0.78]
[1763552734058,14.59107521,139.09,139.03,0.78]
[1763552734341,1.7,139.12,139.05,2.12402073]
[1763552734552,2.12402073,139.09,139.05,2.12402073]
[1763552734712,2.12402073,139.09,139.06,0.7]
[1763552734913,14.59193381,139.11,139.06,0.7]
[1763552735217,2.12402073,139.09,139.06,0.7]
[1763552736020,2.12402073,139.11,139.06,2.82402073]
[1763552736446,2.12402073,139.11,139.07,0.7]
[1763552739249,2.12402073,139.12,139.07,2.82402073]
[1763552739622,2.12402073,139.12,139.08,0.7]
[1763552740139,2.12402073,139.11,139.08,0.7]
[1763552744355,2.12402073,139.12,139.08,2.82402073]
[1763552744558,2.12402073,139.13,139.08,2.82402073]
[1763552744859,2.12402073,139.13,139.09,20.94498073]
[1763552745230,2.12402073,139.13,139.1,0.7]
[1763552750263,2.12402073,139.15,139.1,2.82402073]
[1763552750556,2.12402073,139.15,139.11,2.12402073]
[1763552750762,29.60978769,139.18,139.11,2.12402073]
[1763552750763,9.78882769,139.17,139.12,2.12402073]
[1763552750967,11.91284842,139.17,139.13,0.66]
[1763552751259,2.12402073,139.16,139.13,0.66]
[1763552752037,9.78882769,139.17,139.13,0.66]
[1763552752038,2.12402073,139.15,139.13,0.66]
[1763552756450,2.12402073,139.16,139.13,0.66]
[1763552757267,9.78882769,139.17,139.13,0.66]
[1763552757462,11.91284842,139.17,139.13,0.66]
[1763552758067,2.12402073,139.16,139.13,0.66]
[1763552760259,2.12402073,139.15,139.13,0.66]
[1763552761049,2.12402073,139.16,139.13,0.66]
[1763552761971,18.12096,139.17,139.13,0.66]
[1763552762178,1.7,139.19,139.13,2.78402073]
[1763552762390,2.12402073,139.17,139.13,2.78402073]
[1763552762569,1.7,139.19,139.14,0.66]
[1763552762760,2.12402073,139.17,139.14,0.66]
[1763552763856,2.12402073,139.15,139.11,20.24498073]
[1763552764076,2.12402073,139.15,139.12,0.66]
[1763552764355,2.12402073,139.16,139.12,0.66]
[1763552766601,2.12402073,139.13,139.09,0.66]
[1763552766787,2.12402073,139.12,139.09,0.66]
[1763552766988,2.12402073,139.11,139.09,0.66]
[1763552770074,2.12402073,139.12,139.09,0.66]
[1763552773014,27.90978769,139.14,139.07,2.36]
[1763552773015,2.12402073,139.1,139.07,2.36]
[1763552773172,2.12402073,139.08,139.04,5.24215585]
[1763552773372,2.12402073,139.08,139.04,4.58215585]
[1763552773373,2.12402073,139.05,139.04,4.58215585]
[1763552773573,2.12402073,139.05,139.02,0.66]
[1763552773874,11.48882769,139.08,139.0,8.50617658]
[1763552773875,2.12402073,139.04,139.0,8.50617658]
[1763552774182,2.12402073,139.04,139.03,0.76]
[1763552774384,2.12402073,139.05,139.03,0.76]
[1763552778806,3.31946082,139.05,139.03,0.76]
[1763552780020,13.10828851,139.04,139.03,0.1]
[1763552780392,3.31946082,139.04,139.03,0.1]
[1763552785301,3.31946082,139.06,139.03,0.81]
[1763552787312,3.31946082,139.04,139.03,0.1]
[1763552787519,21.44042082,139.04,139.03,0.1]
[1763552787720,31.22924851,139.04,139.03,0.1]
[1763552788820,21.44042082,139.04,139.03,0.1]
[1763552793115,31.22924851,139.04,139.03,0.1]
[1763552793304,32.92924851,139.04,139.03,0.1]
[1763552793711,36.24870933,139.04,139.03,0.1]
[1763552800437,57.36080238,139.04,139.03,0.1]
[1763552800639,52.34134156,139.04,139.03,0.1]
[1763552800823,54.04134156,139.04,139.03,0.1]
[1763552801141,32.92924851,139.04,139.03,0.1]
[1763552801718,31.22924851,139.04,139.03,0.1]
[1763552801940,32.92924851,139.04,139.03,0.1]
[1763552803424,31.22924851,139.04,139.03,0.1]
[1763552803630,23.14042082,139.04,139.03,0.81]
[1763552803835,23.14042082,139.04,139.03,0.1]
[1763552805044,21.44042082,139.04,139.03,0.81]
[1763552806238,21.44042082,139.04,139.03,0.1]
[1763552806548,31.22924851,139.04,139.03,0.1]
[1763552807946,3.31946082,139.04,139.03,0.1]
[1763552808153,5.01946082,139.04,139.03,0.81]
[1763552808752,3.31946082,139.04,139.03,0.81]
[1763552809962,3.31946082,139.04,139.03,0.1]
[1763552810340,6.63892164,139.04,139.03,0.1]
[1763552814641,18.12096,139.01,139.0,0.1]
[1763552814836,23.14042082,139.01,139.0,0.1]
[1763552816741,23.14042082,139.01,139.0,0.81]
[1763552818854,23.14042082,139.01,139.0,0.1]
[1763552820939,23.14042082,139.01,139.0,0.81]
[1763552821145,5.01946082,139.01,139.0,0.81]
[1763552821459,9.78882769,139.05,139.0,0.81]
[1763552821757,3.31946082,139.02,139.0,0.81]
[1763552822842,3.31946082,139.01,139.0,0.81]
[1763552826765,3.31946082,139.01,139.0,0.1]
[1763552827362,3.31946082,139.01,139.0,0.81]
[1763552830647,3.31946082,139.01,139.0,0.1]
[1763552831367,3.31946082,139.01,139.0,0.81]
[1763552832144,14.5806637,139.03,139.0,0.81]
[1763552832342,1.7,139.03,139.0,0.81]
[1763552832552,3.31946082,139.03,139.0,0.81]
[1763552834050,3.31946082,139.01,139.0,0.81]
[1763552835282,3.31946082,139.02,139.0,0.81]
[1763552835464,3.31946082,139.03,139.0,0.81]
[1763552835666,6.49183601,139.04,139.0,0.81]
[1763552835667,24.61279601,139.04,139.0,0.81]
[1763552835959,3.31946082,139.03,139.0,0.81]
[1763552836374,3.31946082,139.02,139.0,0.81]
[1763552837977,3.31946082,139.03,139.0,0.81]
[1763552838763,2.12524645,139.03,139.0,0.81]
[1763552845189,2.12524645,139.01,139.0,0.1]
[1763552845693,3.82524645,139.01,139.0,0.1]
[1763552845893,1.7,139.01,139.0,0.79]
[1763552846069,3.82524645,139.01,139.0,0.79]
[1763552852380,2.12524645,139.01,139.0,0.79]
[1763552853199,1.7,139.02,139.0,0.79]
[1763552853393,2.12524645,139.01,139.0,0.79]
[1763552853899,4.80197721,139.03,139.0,0.79]
[1763552854098,2.12524645,139.02,139.0,0.79]
[1763552854401,1.7,139.03,139.0,0.1]
[1763552854402,2.12524645,139.01,139.0,0.1]
[1763552854707,2.12524645,139.01,139.0,0.79]
[1763552854893,2.12524645,139.01,139.0,0.1]
[1763552855591,20.24620645,139.01,139.0,0.1]
[1763552855790,30.03503414,139.01,139.0,0.1]
[1763552855984,34.83748161,139.01,139.0,0.1]
[1763552856599,36.53748161,139.01,139.0,0.1]
[1763552860388,36.53748161,139.01,139.0,0.79]
[1763552860602,26.74865392,139.01,139.0,0.79]
[1763552860985,26.74865392,139.01,139.0,0.1]
[1763552861594,36.53748161,139.01,139.0,0.1]
[1763552862899,1.7,139.01,139.0,0.79]
[1763552863106,3.82524645,139.01,139.0,0.79]
[1763552870724,2.12524645,139.01,139.0,0.79]
[1763552870933,3.82524645,139.01,139.0,0.79]
[1763552871433,2.12524645,139.01,139.0,0.79]
[1763552871746,3.82524645,139.01,139.0,0.79]
[1763552872124,2.12524645,139.01,139.0,0.79]
[1763552872321,3.82524645,139.01,139.0,0.79]
[1763552873911,2.12524645,139.01,139.0,0.79]
[1763552874112,3.82524645,139.01,139.0,0.79]
[1763552880629,3.82524645,139.01,139.0,0.78]
[1763552883856,1.7,139.01,139.0,0.78]
[1763552884016,4.80178142,139.03,139.0,0.78]
[1763552884227,19.82096,139.04,139.0,0.78]
[1763552884420,4.80178142,139.03,139.0,0.78]
[1763552884615,6.92702787,139.03,139.0,0.78]
[1763552884815,21.13129394,139.07,139.0,2.90524645]
[1763552885040,2.12524645,139.04,139.0,2.90524645]
[1763552885358,2.12524645,139.04,139.01,0.68]
[1763552885927,2.12524645,139.02,139.01,0.68]
[1763552886455,2.12524645,139.04,139.01,0.68]
[1763552889844,2.12524645,139.03,139.01,0.68]
[1763552891861,2.12524645,139.04,139.01,0.68]
[1763552892880,20.24620645,139.02,139.01,0.68]
[1763552893167,20.24620645,139.02,139.0,0.1]
[1763552893363,2.12524645,139.01,139.0,0.78]
[1763552900377,1.7,139.02,139.0,0.78]
[1763552900578,2.12524645,139.01,139.0,0.78]
[1763552900775,3.32129257,139.01,139.0,0.78]
[1763552901183,21.44225257,139.01,139.0,0.1]
[1763552902879,3.32129257,139.01,139.0,0.77]
[1763552909967,21.44225257,139.01,139.0,0.77]
[1763552910774,3.32129257,139.01,139.0,0.77]
[1763552910971,3.32129257,139.01,139.0,0.1]
[1763552911369,3.32129257,139.01,139.0,0.78]
[1763552911570,3.32129257,139.01,139.0,0.1]
[1763552911880,3.32129257,139.01,139.0,0.78]
[1763552914892,21.44225257,139.01,139.0,0.78]
[1763552915088,21.44225257,139.01,139.0,0.1]
[1763552915271,3.32129257,139.01,139.0,0.78]
[1763552915899,5.02129257,139.02,139.0,0.78]
[1763552916500,3.32129257,139.01,139.0,0.78]
[1763552917606,5.02129257,139.02,139.0,0.78]
[1763552917901,3.32129257,139.01,139.0,0.78]
[1763552919800,3.32129257,139.01,139.0,0.1]
[1763552919973,3.32129257,139.01,139.0,0.78]
[1763552929906,3.32129257,139.01,139.0,0.1]
[1763552931586,3.32129257,139.01,139.0,0.81]
[1763552932588,3.32129257,139.01,139.0,0.1]
[1763552932809,3.32129257,139.01,139.0,0.81]
[1763552933111,3.32129257,139.01,139.0,0.1]
[1763552934401,8.12939911,139.01,139.0,0.1]
[1763552935111,8.12939911,139.01,139.0,0.81]
[1763552935301,3.32129257,139.01,139.0,0.81]
[1763552944431,9.83460345,139.01,139.0,0.1]
[1763552944633,5.02129257,139.01,139.0,0.1]
[1763552945146,9.83460345,139.01,139.0,0.1]
[1763552945315,5.02129257,139.01,139.0,0.1]
[1763552945734,9.83460345,139.01,139.0,0.1]
[1763552946041,5.02129257,139.01,139.0,0.1]
[1763552946538,9.83460345,139.01,139.0,0.1]
[1763552946863,5.02129257,139.01,139.0,0.1]
[1763552947019,9.83460345,139.01,139.0,0.1]
[1763552947222,5.02129257,139.01,139.0,0.1]
[1763552947529,19.62343114,139.01,139.0,0.1]
[1763552951151,9.83460345,139.01,139.0,0.1]
[1763552951346,8.13460345,139.01,139.0,0.1]
[1763552951556,9.83460345,139.01,139.0,0.1]
[1763552955939,9.83460345,139.01,139.0,0.81]
[1763552956834,9.83460345,139.01,139.0,0.1]
[1763552957457,4.81331088,139.01,139.0,0.81]
[1763552957658,3.32129257,139.01,139.0,0.81]
[1763552960135,21.44225257,139.01,139.0,0.81]
[1763552960336,26.25556345,139.01,139.0,0.81]
[1763552960949,25.06016354,139.01,139.0,0.81]
[1763552965437,22.93427088,139.01,139.0,0.81]
[1763552966166,18.12096,139.01,139.0,0.81]
[1763552966364,20.24685266,139.01,139.0,0.81]
[1763552969576,25.05536053,139.01,139.0,0.81]
[1763552977280,22.92946787,139.01,139.0,0.81]
[1763552977477,25.05536053,139.01,139.0,0.81]
[1763552983888,20.24685266,139.01,139.0,0.81]
[1763552985279,6.0166386,139.06,139.0,2.93589266]
[1763552985589,20.24685266,139.05,139.0,5.81991876]
[1763552985886,20.24685266,139.05,139.01,0.69]
[1763552986055,2.12589266,139.05,139.01,0.69]
[1763552986254,18.12096,139.04,139.01,0.69]
[1763552987779,20.24685266,139.04,139.01,0.69]
[1763552990887,2.12589266,139.04,139.01,0.69]
[1763552991697,2.12589266,139.04,139.01,8.02581142]
[1763552991898,2.12589266,139.04,139.02,0.69]
[1763552992913,2.12589266,139.05,139.02,0.69]
[1763552993081,6.50514945,139.06,139.02,2.81589266]
[1763552993082,6.93104211,139.06,139.02,2.81589266]
[1763552993280,6.93104211,139.06,139.03,0.69]
[1763552993613,2.12589266,139.06,139.03,0.69]
[1763552996280,19.82096,139.07,139.03,0.69]
[1763552996502,2.12589266,139.06,139.03,0.69]
[1763552996877,2.12589266,139.06,139.03,10.15170408]
[1763552997078,2.12589266,139.06,139.04,0.69]
[1763552998196,21.94685266,139.07,139.04,0.69]
[1763553001888,19.82096,139.07,139.04,0.69]
[1763553002103,2.12589266,139.06,139.04,0.69]
[1763553002783,18.12096,139.04,139.03,9.46170408]
[1763553002988,21.94685266,139.04,139.0,0.79]
[1763553003221,2.12589266,139.02,139.0,0.79]
[1763553003602,2.12589266,139.01,139.0,0.79]
[1763553007937,2.12589266,139.02,139.0,0.79]
[1763553010829,9.66170408,139.04,139.01,2.12589266]
[1763553011124,9.66170408,139.04,139.01,7.23622736]
[1763553011330,20.24685266,139.05,139.02,0.69]
[1763553011718,18.12096,139.05,139.02,0.69]
[1763553011926,20.24685266,139.07,139.02,2.81589266]
[1763553012306,20.24685266,139.07,139.03,0.69]
[1763553013023,2.12589266,139.06,139.03,0.69]
[1763553015136,20.24685266,139.07,139.03,0.69]
[1763553016138,20.24685266,139.07,139.03,7.92622736]
[1763553016440,20.24685266,139.07,139.04,0.69]
[1763553017940,7.92622736,139.1,139.05,2.12589266]
[1763553018140,1.7,139.13,139.07,2.12589266]
[1763553018336,3.82589266,139.12,139.07,2.12589266]
[1763553018536,18.12096,139.11,139.08,0.69]
[1763553018842,18.12096,139.11,139.08,7.92622736]
[1763553019339,18.12096,139.11,139.09,0.69]
[1763553019644,3.82589266,139.12,139.09,0.69]
[1763553019944,21.94685266,139.12,139.09,0.69]
[1763553020240,18.12096,139.11,139.09,0.69]
[1763553022314,20.24685266,139.12,139.09,0.69]
[1763553022726,20.24685266,139.12,139.09,10.05212002]
[1763553022929,21.43703441,139.12,139.09,10.05212002]
[1763553023235,21.43703441,139.12,139.1,0.7]
[1763553023749,3.31607441,139.11,139.1,0.7]
[1763553025439,18.12096,139.12,139.1,0.7]
[1763553025742,3.31607441,139.11,139.1,0.7]
[1763553029245,18.12096,139.12,139.1,0.7]
[1763553029246,3.31607441,139.12,139.1,0.7]
[1763553029450,3.31607441,139.13,139.1,0.7]
[1763553029759,3.31607441,139.13,139.1,10.06212002]
[1763553030264,19.82096,139.14,139.09,3.31607441]
[1763553030265,23.13703441,139.14,139.11,0.72]
[1763553030565,23.13703441,139.14,139.11,10.78212002]
[1763553030758,3.31607441,139.13,139.11,10.78212002]
[1763553030954,3.31607441,139.13,139.11,10.06212002]
[1763553031158,3.31607441,139.13,139.12,0.72]
[1763553033272,23.13703441,139.14,139.12,0.72]
[1763553033656,3.31607441,139.13,139.12,0.72]
[1763553035649,21.87503427,139.17,139.12,0.72]
[1763553035650,3.31607441,139.16,139.12,0.72]
[1763553035871,5.01607441,139.16,139.12,0.72]
[1763553037286,3.31607441,139.16,139.12,0.72]
[1763553037454,20.02096,139.17,139.13,3.31607441]
[1763553037783,0.2,139.17,139.13,3.31607441]
[1763553038078,3.51607441,139.17,139.14,0.72]
[1763553038766,0.2,139.17,139.14,0.72]
[1763553038968,3.51607441,139.17,139.14,0.72]
[1763553039276,18.32096,139.17,139.14,0.72]
[1763553039583,21.63703441,139.17,139.14,0.72]
[1763553040582,3.31607441,139.15,139.11,0.72]
[1763553040878,3.31607441,139.14,139.12,0.72]
[1763553041183,3.31607441,139.15,139.12,0.72]
[1763553043277,3.31607441,139.16,139.12,0.72]
[1763553043485,3.31607441,139.16,139.12,4.03607441]